Cogmind - Beta 14 @@@ ROGUE MODE // 2024.12.01 @ 19:20:40 Player: zicraftian Result: Destroyed by H-55 Commando with Gauss Rifle Performance ------------- Evolutions (1) 500 Regions Visited (5) 1000 Robots Destroyed (20) 100 Value Destroyed (586) 586 Prototype IDs (23) 460 Alien Tech Used (0) 0 Bonus (300) 300 TOTAL SCORE: 2946 Bonus ------- Aligned with FarCom 300 Cogmind --------- Core Integrity 0/400 Matter 250/300 Energy 275/275 System Corruption 0% Temperature Cool (0) Movement Rolling (100) Location -8/Mines Parts ------- > --- POWER (2) -------- Ion Engine Light Ion Engine > --- PROPULSION (2) --- Compact Wheel Compact Wheel > --- UTILITY (2) ------ Hacking Suite > --- WEAPON (3) ------- Small Laser > --- INVENTORY (5) ---- Aluminum Leg Peak State ------------ > --- POWER ------------ Ion Engine Light Ion Engine > --- PROPULSION ------- Compact Wheel Compact Wheel > --- UTILITY ---------- Hacking Suite > --- WEAPON ----------- Small Laser Guided Plasma Cannon > --- INVENTORY -------- Reinforced Deuterium Engine Aluminum Leg [Rating: 16] Favorites ----------- Power Light Ion Engine Engine Light Ion Engine Propulsion Compact Wheel Leg Aluminum Leg Wheel Compact Wheel Hover Unit Hover Unit Utility Hacking Suite Device Heat Sink Hackware Hacking Suite Protection Medium Armor Plating Weapon Small Laser Energy Gun Small Laser Energy Cannon Guided Plasma Cannon Ballistic Gun Assault Rifle Special Weapon Plasma Cutter Slashing Weapon Katana Build | -11 -10 -9 -9 -9 -8 ------- Run | Yrd Mat Mat Min Exi Min Slots Evolved 2 | . . 2 . . . Power 1 | . . 1 . . . Propulsion . | . . . . . . Utility . | . . . . . . Weapon 1 | . . 1 . . . Parts Attached 48 | 16 4 15 9 4 . Power 5 | 2 . 1 2 . . Engine 5 | 2 . 1 2 . . Core . | . . . . . . Reactor . | . . . . . . Propulsion 17 | 4 . 6 5 2 . Treads . | . . . . . . Leg 7 | 2 . 4 1 . . Wheel 8 | 2 . . 4 2 . Hover 2 | . . 2 . . . Flight . | . . . . . . Utility 9 | 1 2 5 . 1 . Device 3 | 1 1 1 . . . Storage . | . . . . . . Processor . | . . . . . . Hackware 2 | . . 1 . 1 . Protection 4 | . 1 3 . . . Artifact . | . . . . . . Weapon 17 | 9 2 3 2 1 . Energy Gun 7 | 5 . 1 1 . . Energy Cannon 1 | . . . . 1 . Ballistic Gun 6 | 4 1 1 . . . Ballistic Cannon . | . . . . . . Launcher . | . . . . . . Special Weapon 2 | . 1 1 . . . Impact Weapon . | . . . . . . Slashing Weapon 1 | . . . 1 . . Piercing Weapon . | . . . . . . Special Melee Weapon . | . . . . . . Unidentified Prototypes 1 | . . . . 1 . Parts Lost 12 | . 1 . 11 . . Power 2 | . . . 2 . . Propulsion 3 | . . . 3 . . Utility 2 | . . . 2 . . Weapon 5 | . 1 . 4 . . Highest Loss Streak 7 | . 1 . 7 . . To Critical Strikes . | . . . . . . Average Slot Usage (%) 68 | . 93 74 48 65 66 Engine 17 | . 14 11 11 22 22 Leg 7 | . 28 15 7 . . Wheel 13 | . . . 9 22 22 Device 3 | . 13 9 . . . Hackware 6 | . . 2 4 10 11 Protection 3 | . 12 9 . . . Energy Gun 9 | . 9 3 9 11 11 Ballistic Gun 4 | . 10 15 2 . . Peak Build Rating 16 | 6 9 13 13 16 8 Average Rating 7 | 4 7 9 6 7 8 On Entrance 6 | . 6 7 13 5 8 Naked Turns 28 | . . . 28 . . Heaviest Build 19 | 8 15 18 11 19 9 Greatest Support 32 | 20 20 20 32 32 32 Greatest Overweight (x) 4 | . . 4 . 2 . Average Overweight (x) . | . . . . . . Largest Inventory Capacity 5 | 5 5 5 5 5 5 Average Capacity 5 | 5 5 5 5 5 5 Most Carried 5 | 5 5 5 5 4 2 Average Carried 2 | 2 4 3 3 2 1 Final Capacity 5 | 5 5 5 5 5 5 Final Carried 4 | 4 3 4 4 2 1 Class Distribution -------------------- 58% | Scavenger-Mutant 35% | Mutant 6% | Tank Dominant Class ---------------- Mutant | -10/Materials Mutant | -9/Materials Scavenger-Mutant | -9/Mines Scavenger-Mutant | -9/Exiles Scavenger-Mutant | -8/Mines Resources | -11 -10 -9 -9 -9 -8 ----------- Run | Yrd Mat Mat Min Exi Min Matter Collected 859 | 319 160 259 121 . . Remotely . | . . . . . . Salvage Created 665 | 38 198 287 142 . . Parts 47 | 3 13 25 6 . . Haulers Intercepted . | . . . . . . Recyclers Shooed . | . . . . . . Parts Field Recycled . | . . . . . . Retrieved Matter . | . . . . . . Parts Self-Destructed . | . . . . . . Prevented . | . . . . . . Kills | -11 -10 -9 -9 -9 -8 ------- Run | Yrd Mat Mat Min Exi Min Combat Hostiles Destroyed 18 | 1 4 7 6 . . Guns 18 | 1 4 7 6 . . Classes Destroyed 6 | 1 1 2 2 . . Builder 1 | . . 1 . . . Watcher 4 | . 2 2 . . . Swarmer 3 | . . 3 . . . Grunt 11 | 1 4 4 2 . . Duelist 1 | . . . 1 . . Assembled 3 | . . . 3 . . Best Kill Streak 6 | 1 2 6 3 . . Combat Bots Only 4 | 1 2 4 3 . . Max Kills in Single Turn 2 | 1 2 2 1 . . Gunslinging 1 | . 1 1 . . . Exploded . | . . . . . . Melee . | . . . . . . Uniques/NPCs Destroyed . | . . . . . . Combat | -11 -10 -9 -9 -9 -8 -------- Run | Yrd Mat Mat Min Exi Min Hostile Shots Fired 116 | 8 23 29 55 . 1 Missed 26 | 3 3 9 11 . . Damage Taken 1422 | 55 251 159 938 . 19 Core 442 | 12 22 22 367 . 19 Absorbed by Shields 154 | . . 63 91 . . Core Remaining (%) 90 | 95 86 . . . . Volleys Fired 70 | 3 27 19 21 . . Largest 3 | 2 2 3 3 . . Hottest 83 | 60 60 83 83 . . Shots Fired 127 | 6 43 43 35 . . Gun 122 | 6 43 38 35 . . Cannon . | . . . . . . Launcher . | . . . . . . Special 5 | . . 5 . . . Kinetic 75 | 3 27 31 14 . . Thermal 33 | . . 12 21 . . Explosive . | . . . . . . Electromagnetic 19 | 3 16 . . . . Robot Hit Streak 7 | 4 7 5 5 . . Robot Miss Streak 4 | 1 3 2 4 . . Penetration Max . | . . . . . . Secondary Targets 2 | . 1 1 . . . Max Gunslinging Chain 1 | . 1 1 . . . Shots Hit Robots 59 | 4 13 23 19 . . Core Hits 34 | 2 8 14 10 . . Critical Kills . | . . . . . . Critical Parts Destroyed . | . . . . . . Critical Strikes . | . . . . . . Melee Attacks 2 | . . . 2 . . Impact . | . . . . . . Slashing 2 | . . . 2 . . Piercing . | . . . . . . Sneak Attacks . | . . . . . . Combat Hostiles . | . . . . . . Follow-up Attacks . | . . . . . . Damage Inflicted 846 | 52 224 297 273 . . Guns 822 | 52 224 273 273 . . Cannons . | . . . . . . Explosions . | . . . . . . Melee . | . . . . . . Ramming 3 | . . 3 . . . Kinetic 578 | 24 171 251 132 . . Thermal 184 | . . 43 141 . . Explosive . | . . . . . . Electromagnetic 81 | 28 53 . . . . Impact . | . . . . . . Slashing . | . . . . . . Piercing . | . . . . . . Highest Corruption . | . . . . . . Average Corruption . | . . . . . . Corruption Purged . | . . . . . . Corruption Blocked . | . . . . . . Overload Shots . | . . . . . . Overflow Damage . | . . . . . . Projectiles . | . . . . . . Explosions . | . . . . . . Melee . | . . . . . . Knockbacks . | . . . . . . Impact . | . . . . . . Kinetic . | . . . . . . Secondary . | . . . . . . Self-Inflicted Damage . | . . . . . . Shots . | . . . . . . Rammed 1 | . . 1 . . . Targets Rammed 2 | . . 2 . . . Kicked 1 | . . 1 . . . Crushed . | . . . . . . Highest Temperature 135 | 18 8 27 135 . . Average Temperature 42 | 13 3 9 89 . . Received Heat Transfer 326 | 30 144 70 82 . . Siege Activations . | . . . . . . Robots Corrupted . | . . . . . . Combat Hostiles . | . . . . . . Parts Fried . | . . . . . . Impact Corruptions . | . . . . . . Robots Melted . | . . . . . . Combat Hostiles . | . . . . . . Parts Melted . | . . . . . . Heat Transferred 449 | . . 124 325 . . Parts Sabotaged . | . . . . . . Parts Stolen . | . . . . . . Parts Stripped . | . . . . . . Power Chain Reactions . | . . . . . . Alert | -11 -10 -9 -9 -9 -8 ------- Run | Yrd Mat Mat Min Exi Min Peak Influence 152 | 20 152 134 122 . . Initial 52 | . 13 . 52 . . Average 45 | 7 62 29 87 . . Maximum Alert Level . | . . . . . . Low Security (%) 100 | 100 100 100 100 . 100 Level 1 . | . . . . . . Level 2 . | . . . . . . Level 3 . | . . . . . . Level 4 . | . . . . . . Level 5 . | . . . . . . High Security . | . . . . . . Max Security . | . . . . . . Squads Dispatched 4 | . 1 2 1 . . Investigation . | . . . . . . Extermination . | . . . . . . Reinforcement 3 | . 1 2 . . . Assault 1 | . . . 1 . . Garrison . | . . . . . . Intercept . | . . . . . . Searches Triggered . | . . . . . . Construction Impeded . | . . . . . . Haulers Reinforced . | . . . . . . Active Scanning Responses . | . . . . . . Cargo Convoy Interrupts . | . . . . . . Stealth | -11 -10 -9 -9 -9 -8 --------- Run | Yrd Mat Mat Min Exi Min Distress Signals 2 | . . 1 1 . . Communications Jammed . | . . . . . . Distress Signals . | . . . . . . Times Spotted 32 | 1 6 13 11 . 1 Peak Tracking Total 4 | 1 2 4 4 . 1 Tactical Retreats 3 | . . . 3 . . Traps | -11 -10 -9 -9 -9 -8 ------- Run | Yrd Mat Mat Min Exi Min Traps Triggered . | . . . . . . Indirectly . | . . . . . . Trap Hack Attempts . | . . . . . . Triggered . | . . . . . . Disarmed . | . . . . . . Reprogrammed . | . . . . . . Reused . | . . . . . . Traps Extracted . | . . . . . . Installed . | . . . . . . Triggered . | . . . . . . Machines | -11 -10 -9 -9 -9 -8 ---------- Run | Yrd Mat Mat Min Exi Min Machines Disabled 4 | . 2 . 2 . . Max in Single Turn 1 | . 1 . 1 . . Machines Repaired . | . . . . . . Machines Dismantled 1 | . 1 . . . . Machines Sabotaged . | . . . . . . Overloaded Fab Kills . | . . . . . . Hacking | -11 -10 -9 -9 -9 -8 --------- Run | Yrd Mat Mat Min Exi Min Machines Accessed 7 | . . 2 . 5 . Terminals 1 | . . 1 . . . Fabricators . | . . . . . . Repair Stations . | . . . . . . Recycling Units . | . . . . . . Scanalyzers 1 | . . 1 . . . Garrison Access . | . . . . . . Total Hacks 55 | . . 5 . 50 . Successful 54 | . . 4 . 50 . Failed 1 | . . 1 . . . Catastrophic . | . . . . . . Database Lockouts . | . . . . . . Manual 11 | . . . . 11 . Terminals 1 | . . 1 . . . Fabricators . | . . . . . . Repair Stations . | . . . . . . Recycling Units . | . . . . . . Scanalyzers 4 | . . 4 . . . Garrison Access . | . . . . . . Terminal Hacks 50 | . . . . 50 . Record 49 | . . . . 49 . Derelict Proto ID Bank 1 | . . . . 1 . Fabricator Hacks . | . . . . . . Repair Station Hacks . | . . . . . . Recycling Unit Hacks . | . . . . . . Scanalyzer 4 | . . 4 . . . Insert Component 3 | . . 3 . . . Analyze 1 | . . 1 . . . Garrison Access Hacks . | . . . . . . Unauthorized Hacks . | . . . . . . Terminals . | . . . . . . Fabricators . | . . . . . . Repair Stations . | . . . . . . Recycling Units . | . . . . . . Scanalyzers . | . . . . . . Garrison Access . | . . . . . . Data Cores Recovered . | . . . . . . Used . | . . . . . . Hacking Detections 1 | . . 1 . . . Full Trace Events 1 | . . 1 . . . Feedback Events . | . . . . . . Feedback Blocked . | . . . . . . Robot Schematics Acquired . | . . . . . . Robots Built . | . . . . . . Authchips . | . . . . . . Time . | . . . . . . Total Robot Build Rating . | . . . . . . Part Schematics Acquired 1 | . . 1 . . . Parts Built . | . . . . . . Authchips . | . . . . . . Time . | . . . . . . Total Part Build Rating . | . . . . . . Parts Repaired . | . . . . . . Time . | . . . . . . Parts Recycled . | . . . . . . Recycled Matter . | . . . . . . Retrieved Matter . | . . . . . . Retrieved Components . | . . . . . . Parts Scanalyzed 1 | . . 1 . . . Part Schematics Acquired 1 | . . 1 . . . Parts Damaged . | . . . . . . Bothacking | -11 -10 -9 -9 -9 -8 ------------ Run | Yrd Mat Mat Min Exi Min Used RIF Installer . | . . . . . . Robots Hacked . | . . . . . . Non-combat . | . . . . . . Combat . | . . . . . . Robot Hacks Applied . | . . . . . . Relay Couplers Released . | . . . . . . Fabnet Peak Effective % . | . . . . . . Robots Rewired . | . . . . . . Allies Hacked . | . . . . . . Hacks Repelled . | . . . . . . Allies | -11 -10 -9 -9 -9 -8 -------- Run | Yrd Mat Mat Min Exi Min Total Allies 1 | . . . 1 . . Largest Group 1 | . . . 1 1 1 Highest-Rated Group 31 | . . . 31 31 31 Highest-Rated Ally 31 | . . . 31 31 31 Total Orders . | . . . . . . Ally Attacks 2 | . . . . . 2 Total Damage 42 | . . . . . 42 Kills . | . . . . . . Allies Corrupted . | . . . . . . Allies Melted . | . . . . . . Intel | -11 -10 -9 -9 -9 -8 ------- Run | Yrd Mat Mat Min Exi Min Robot Analysis Total . | . . . . . . Derelict Logs Recovered . | . . . . . . Drone Launches . | . . . . . . Drone Recoveries . | . . . . . . Exploration | -11 -10 -9 -9 -9 -8 ------------- Run | Yrd Mat Mat Min Exi Min Turns Passed 3199 | 242 411 506 386 1512 142 Spaces Moved 2676 | 199 195 317 367 1466 132 Core 228 | 55 . 14 153 6 . Treads . | . . . . . . Legs 660 | 144 195 253 68 . . Wheels 1738 | . . . 146 1460 132 Hover 50 | . . 50 . . . Flight . | . . . . . . Fastest Speed 50 | 50 120 116 50 100 100 Average Speed 102 | 100 120 125 81 100 100 Slowest Speed 250 | 120 120 250 120 150 100 Overloaded Moves . | . . . . . . Propulsion Burnouts . | . . . . . . Robots Hopped . | . . . . . . Cave-ins Triggered . | . . . . . . Time Travels 1 | . . . . 1 . Exploration Rate (%) 38 | 6 22 27 58 94 26 Regions Visited 5 Branch Regions 3 Pre-discovered Areas 1 | . . . . 1 . Known Exits Taken . | . . . . . . Unknown Exits Taken 5 | 1 1 1 1 1 . Scrap Searched . | . . . . . . Spaces Dug . | . . . . . . Terrain Destroyed . | . . . . . . Melee . | . . . . . . Projectile . | . . . . . . AOE . | . . . . . . Terrain Rammed . | . . . . . . Walls Destroyed . | . . . . . . Machines Disabled . | . . . . . . Actions | -11 -10 -9 -9 -9 -8 --------- Run | Yrd Mat Mat Min Exi Min Total 2979 | 233 283 390 419 1512 142 Wait 65 | 2 22 8 10 14 9 Move 2671 | 198 194 316 366 1465 132 Hop . | . . . . . . Pick Up 44 | 10 6 15 9 4 . Fast Attach . | . . . . . . Attach 31 | 10 2 8 7 4 . Detach 11 | 4 . 4 . 3 . Swap 17 | 6 2 7 2 . . Drop 24 | . 6 11 2 4 1 Fire 70 | 3 27 19 21 . . Melee 2 | . . . 2 . . Ram 1 | . . 1 . . . Kick 1 | . . 1 . . . Crush . | . . . . . . Escape Stasis . | . . . . . . Rewire 18 | . . . . 18 . Trap . | . . . . . . Miscellaneous 24 | . 24 . . . . Route ------- -11/Scrapyard -10/Materials -9/Materials -9/Mines (discovered 2 exits: [*Mat] / *Exi) -9/Exiles (discovered 2 exits: [*Min x2]) -8/Mines History --------- Turn | Location | Event 2 | -11/Scrapyard | Met Revision 17 103 | -11/Scrapyard | Discovered new exit (range 8) 243 | -11/Scrapyard | Entered Materials 302 | -10/Materials | Build established: Mutant 634 | -10/Materials | Discovered new exit (range 14) 654 | -10/Materials | Entered another Materials area 654 | -9/Materials | Evolved 2 slots: Power x1, Weapon x1 1122 | -9/Materials | Discovered new exit (range 9) 1160 | -9/Materials | Entered Mines 1215 | -9/Mines | Lost 3 parts (1p1u1w) 1233 | -9/Mines | Assembled infested the area 1299 | -9/Mines | Core integrity fell below 50% 1308 | -9/Mines | Core integrity fell below 20% 1330 | -9/Mines | A Derelict revealed a hidden shortcut to a safe place 1338 | -9/Mines | Lost 7 parts (1p2n1u3w) 1450 | -9/Mines | Discovered new exit (range 8) 1521 | -9/Mines | Met a Derelict testing a Signal Generator 1541 | -9/Mines | Deemed a non-threat by the Exiles lab entrance 1542 | -9/Mines | Discovered new exit (range 5) 1546 | -9/Mines | Entered Exiles 1546 | -9/Exiles | Accompanied by 1 ally 1561 | -9/Exiles | Discovered new exit (range 15) 1594 | -9/Exiles | Met 8R-AWN 1634 | -9/Exiles | Met EX-HEX 1712 | -9/Exiles | Build established: Scavenger-Mutant 1747 | -9/Exiles | Met EX-DEC 1832 | -9/Exiles | Met EX-BIN 1847 | -9/Exiles | Aligned with FarCom system 1848 | -9/Exiles | Given EX-Vault access code 2085 | -9/Exiles | Learned location of Zion (-7) 2172 | -9/Exiles | Discovered new exit (range 10) 2252 | -9/Exiles | Visited The Gauntlet 2643 | -9/Exiles | Opened EX-Vault 2649 | -9/Exiles | Found Prototype Energy Cannon 2654 | -9/Exiles | Identified Gui. Plasma Cannon 2673 | -9/Exiles | Found Chronowheel 2697 | -9/Exiles | Warned to stay clear of 0b10 Research branches 2712 | -9/Exiles | Activated Chronowheel 2712 | -9/Exiles | Spacetime reconverged on an earlier point 3058 | -9/Exiles | Entered Mines 3058 | -8/Mines | Accompanied by 1 ally 3200 | -8/Mines | Destroyed by H-55 Commando with Gauss Rifle Last Messages --------------- something like 1234 which I did last time as a little joke and some thief managed to sneak in here and steal a few of HEX's prototypes. Spacetime feels normal again. Spacetime reconverges on this point. Connecting with HEX's Terminal... [Achievement: Tourist] LOCATION=UNKNOWN GOAL=ESCAPE Receiving FarCom transmissions... T-07 Excavator is excavating. Slug penetrates T2-U35(g). Dropped Rigged Rnf. Deuterium Engine. H-55 Commando suffers critical hit (Burn). R-06 Scavenger collects Rigged Rnf. Deuterium Engine. Slug penetrates T2-U35(g). T2-U35(g) destroyed. Slug penetrates Wall. [Achievement: First Step to Greatness] Map ----- +----------------------------------------------------+ | ?????????????????????????????????????????????????? | | ?????????????????????????????????????????????????? | | ?????????????????????????????????????????????????? | | ?????????????????????????????????????????????????? | | ?????????????????########????????????????????????? | | ????????????????## ##???????????????????????? | | ????????????????# ##??????????????????????? | | ????????????????# ### ##?????????????????????? | | ????????????????####?# ####??????????????????? | | ?????????????????????## ###### #??????????? | | ??????????????????????## #??????????? | | ???????????????????????## #####s #??????????? | | ????????????????????????# ##??? #??????????? | | ????????????????????????# #### ##?????????? | | ????????????????????????# ##????????? | | ????????????????????????## ##???????? | | ?????????????????????????## #???????? | | ??????????????????????????# #???????? | | ????????????????????####### ##???????? | | ??????????????# ##?????#### | | ????????????????????## ##### #????### # | | ?????????????????????# #???## #???## | | ?????????????????????# #????# #???# | | ?????????????????????# #???## ##?## | | ?????????????????????# ##### ### | | ?????????????????????# @ # | | ?????????????????????#h###### ## | | ?????????????????????# #????## ######? | | ????????????#????????# #?????#### ##?????? | | ??????????### ???##### #????????## ##??????? | | ??????????# ### = #?????????# ##???????? | | ??????????# %!#?????????## #????????? | | ??????????## ! #??????????## #????????? | | ???????????## ##??? #????## ##????????? | | ????????????##### ## #?????####?????????? | | ????????????????## #??????????????????? | | ?????????????????## ##??????????????????? | | ??????????????????## ####???????????????????? | | ???????????????????## ###??????????????????????? | | ????????????????????## #????????????????????????? | | ?????????????????????#l #????????????????????????? | | ?????????????????????# #????????????????????????? | | ?????????????????????g ????????????????????????? | | ????????????????????? ????????????????????????? | | ????????????????????? #???????????????????????? | | ????????????????????? #???????????????????????? | | ????????????????????? ???????????????????????? | | ????????????????????? ???????????????????????? | | ????????????????????? #??????????????????????? | | ????????????????????? ##??????????????????????? | +----------------------------------------------------+ Best States ------------- Heat Dissipation 38 Energy Generation 15 Energy Capacity 275 Matter Stores 300 Matter Capacity 300 Sight Range 16 Terrain Scan Density 10 Armor Coverage 225 Weapon Shielding 33 Evasion (%) 55 Offensive Hacking 10 Item Schematics ----------------- Sml. Laser | -9/Materials | Scanalyzed Robot Schematics ------------------ None Fabricated ------------ Nothing Alien Tech Used ----------------- None Achievements -------------- First Step to Greatness I Survived The Infestation Librarian Risk Taker Tourist Uninvited Guest Challenges ------------ None Game ------ Seed CentriumCooledBattery Manual? 0 Play Time 01:57:53 Cumulative 1.9 hours Start 2024.12.01 @ 08:38:40 End 2024.12.01 @ 19:20:40 Sessions 5 Manual Loads 0 Difficulty Rogue Special Mode None Game No. 1 Rogue 1 Adventurer 0 Explorer 0 Win Type - Total 0 Types 0/0/0/0/0/0/0/0/0 Lore% 5 Gallery% 1 Achievement% 2 Wizard Run 0 Options --------- Layout 1 ASCII 0 Keyboard 1 Movement Numpad Keybinds 0 Fullscreen 1 Font 24/Smallcaps Map View 50x35 Zoom Use 0% Tactical HUD 0 Map Filters NONE Filters NONE Steam 1 RUN: 47efbca2-9dc4-449b-b080-fbdddd90743f